[Event "Titled Tuesday Blitz February 14 Late 2023"]
[White "Bortnyk, Olexandr"]
[Black "Samsonkin, Artiom"]
[WhiteFideId "14120828"]
[BlackFideId "13503111"]
[WhiteElo "2605"]
[BlackElo "2420"]
[Result "1-0"]
[Round "05"]
[TimeControl "180+2"]
[Date "2023.02.14"]
[WhiteClock "0:00:07"]
[BlackClock "0:00:08"]

1. d4 {[%clk 0:03:00]}  Nf6 {[%clk 0:02:57]} 2. Nc3 {[%clk 0:02:58]}  e6 {[%clk 0:02:50]} 3. e4 {[%clk 0:02:57]}  d5 {[%clk 0:02:51]} 4. Bg5 {[%clk 0:02:57]}  dxe4 {[%clk 0:02:49]} 5. Nxe4 {[%clk 0:02:57]}  Bd7 {[%clk 0:02:49]} 6. Nf3 {[%clk 0:02:48]}  Bc6 {[%clk 0:02:47]} 7. Bd3 {[%clk 0:02:47]}  Nbd7 {[%clk 0:02:41]} 8. O-O {[%clk 0:02:42]}  h6 {[%clk 0:02:42]} 9. Bh4 {[%clk 0:02:07]}  Bxe4 {[%clk 0:02:35]} 10. Bxe4 {[%clk 0:02:06]}  g5 {[%clk 0:02:36]} 11. Bxb7 {[%clk 0:01:59]}  Rb8 {[%clk 0:02:22]} 12. Bc6 {[%clk 0:01:59]}  gxh4 {[%clk 0:02:22]} 13. Ne5 {[%clk 0:01:59]}  Bd6 {[%clk 0:02:15]} 14. Qf3 {[%clk 0:01:59]}  O-O {[%clk 0:01:57]} 15. Rfe1 {[%clk 0:01:38]}  Qe7 {[%clk 0:01:42]} 16. Bxd7 {[%clk 0:01:31]}  Nxd7 {[%clk 0:01:43]} 17. Nc6 {[%clk 0:01:31]}  Qg5 {[%clk 0:01:23]} 18. Nxb8 {[%clk 0:01:29]}  Rxb8 {[%clk 0:01:24]} 19. b3 {[%clk 0:01:26]}  Nf6 {[%clk 0:01:19]} 20. h3 {[%clk 0:01:26]}  Kg7 {[%clk 0:01:15]} 21. c4 {[%clk 0:01:25]}  c5 {[%clk 0:01:09]} 22. Rad1 {[%clk 0:01:23]}  cxd4 {[%clk 0:00:49]} 23. Rxd4 {[%clk 0:01:24]}  Bc5 {[%clk 0:00:50]} 24. Rd3 {[%clk 0:01:24]}  e5 {[%clk 0:00:46]} 25. Qe2 {[%clk 0:00:58]}  e4 {[%clk 0:00:45]} 26. Rdd1 {[%clk 0:00:57]}  Re8 {[%clk 0:00:45]} 27. Rf1 {[%clk 0:00:52]}  e3 {[%clk 0:00:32]} 28. f4 {[%clk 0:00:51]}  Qg6 {[%clk 0:00:32]} 29. Rfe1 {[%clk 0:00:37]}  Nh5 {[%clk 0:00:28]} 30. Rd5 {[%clk 0:00:30]}  Nxf4 {[%clk 0:00:28]} 31. Qb2+ {[%clk 0:00:30]}  Kg8 {[%clk 0:00:21]} 32. Rxc5 {[%clk 0:00:29]}  Nd3 {[%clk 0:00:22]} 33. Rxe3 {[%clk 0:00:24]}  Nxb2 {[%clk 0:00:20]} 34. Rxe8+ {[%clk 0:00:24]}  Kg7 {[%clk 0:00:20]} 35. Rcc8 {[%clk 0:00:23]}  Qb1+ {[%clk 0:00:21]} 36. Kh2 {[%clk 0:00:23]}  Nd3 {[%clk 0:00:20]} 37. Rg8+ {[%clk 0:00:24]}  Kf6 {[%clk 0:00:20]} 38. Rg4 {[%clk 0:00:22]}  Qe1 {[%clk 0:00:19]} 39. Rc6+ {[%clk 0:00:17]}  Ke7 {[%clk 0:00:18]} 40. Rc7+ {[%clk 0:00:18]}  Kf8 {[%clk 0:00:17]} 41. Rc8+ {[%clk 0:00:17]}  Ke7 {[%clk 0:00:18]} 42. Rc7+ {[%clk 0:00:18]}  Ke6 {[%clk 0:00:18]} 43. Rc6+ {[%clk 0:00:16]}  Kd7 {[%clk 0:00:18]} 44. Rxh6 {[%clk 0:00:15]}  Qe5+ {[%clk 0:00:19]} 45. Kg1 {[%clk 0:00:15]}  Qe1+ {[%clk 0:00:18]} 46. Kh2 {[%clk 0:00:16]}  Nf2 {[%clk 0:00:15]} 47. Rd4+ {[%clk 0:00:15]}  Kc7 {[%clk 0:00:15]} 48. Rhxh4 {[%clk 0:00:15]}  f5 {[%clk 0:00:13]} 49. Rh7+ {[%clk 0:00:12]}  Kc6 {[%clk 0:00:14]} 50. Rd5 {[%clk 0:00:12]}  Qh1+ {[%clk 0:00:12]} 51. Kg3 {[%clk 0:00:13]}  Ne4+ {[%clk 0:00:13]} 52. Kf4 {[%clk 0:00:13]}  Qf1+ {[%clk 0:00:13]} 53. Ke5 {[%clk 0:00:13]}  Qa1+ {[%clk 0:00:12]} 54. Kxf5 {[%clk 0:00:11]}  Qf6+ {[%clk 0:00:09]} 55. Kxe4 {[%clk 0:00:10]}  Qg6+ {[%clk 0:00:09]} 56. Kf3 {[%clk 0:00:02]}  Qxh7 {[%clk 0:00:10]} 57. Rd2 {[%clk 0:00:02]}  Qf5+ {[%clk 0:00:10]} 58. Ke3 {[%clk 0:00:02]}  Qg5+ {[%clk 0:00:11]} 59. Kd3 {[%clk 0:00:02]}  Qf5+ {[%clk 0:00:11]} 60. Kc3 {[%clk 0:00:02]}  Qe5+ {[%clk 0:00:11]} 61. Kd3 {[%clk 0:00:02]}  Qg3+ {[%clk 0:00:12]} 62. Kc2 {[%clk 0:00:02]}  Kc5 {[%clk 0:00:13]} 63. a3 {[%clk 0:00:02]}  a5 {[%clk 0:00:13]} 64. Rd5+ {[%clk 0:00:02]}  Kb6 {[%clk 0:00:13]} 65. a4 {[%clk 0:00:01]}  Qxg2+ {[%clk 0:00:07]} 66. Kc3 {[%clk 0:00:02]}  Qxh3+ {[%clk 0:00:06]} 67. Kb2 {[%clk 0:00:03]}  Qg2+ {[%clk 0:00:07]} 68. Kc3 {[%clk 0:00:02]}  Qe4 {[%clk 0:00:08]} 69. Rb5+ {[%clk 0:00:02]}  Ka6 {[%clk 0:00:06]} 70. Kd2 {[%clk 0:00:03]}  Qd4+ {[%clk 0:00:06]} 71. Ke2 {[%clk 0:00:04]}  Qa1 {[%clk 0:00:07]} 72. Kd2 {[%clk 0:00:04]}  Qa2+ {[%clk 0:00:08]} 73. Kd3 {[%clk 0:00:05]}  Qa3 {[%clk 0:00:09]} 74. Kd4 {[%clk 0:00:05]}  Qa2 {[%clk 0:00:09]} 75. Kd5 {[%clk 0:00:06]}  Qb1 {[%clk 0:00:10]} 76. Kc6 {[%clk 0:00:06]}  Qa1 {[%clk 0:00:11]} 77. Kd6 {[%clk 0:00:05]}  Qa2 {[%clk 0:00:12]} 78. Kc6 {[%clk 0:00:05]}  Ka7 {[%clk 0:00:11]} 79. Rxa5+ {[%clk 0:00:05]}  Kb8 {[%clk 0:00:11]} 80. Rb5+ {[%clk 0:00:06]}  Ka7 {[%clk 0:00:11]} 81. Kc7 {[%clk 0:00:06]}  Ka6 {[%clk 0:00:12]} 82. Rb6+ {[%clk 0:00:05]}  Ka7 {[%clk 0:00:12]} 83. Rb7+ {[%clk 0:00:05]}  Ka6 {[%clk 0:00:13]} 84. Rb5 {[%clk 0:00:05]}  Qh2+ {[%clk 0:00:12]} 85. Kc6 {[%clk 0:00:06]}  Qf4 {[%clk 0:00:13]} 86. Kd5 {[%clk 0:00:06]}  Qf5+ {[%clk 0:00:13]} 87. Kd4 {[%clk 0:00:06]}  Qf4+ {[%clk 0:00:14]} 88. Kd3 {[%clk 0:00:07]}  Qf3+ {[%clk 0:00:14]} 89. Kc2 {[%clk 0:00:07]}  Qf4 {[%clk 0:00:15]} 90. Kb1 {[%clk 0:00:07]}  Qe5 {[%clk 0:00:08]} 91. Rxe5 {[%clk 0:00:07]} 1-0


[Site "https://www.chess.com"]

[Event "Titled Tuesday Blitz February 14 Late 2023"]
[White "Naroditsky, Daniel"]
[Black "Madaminov, Mukhiddin"]
[WhiteFideId "2026961"]
[BlackFideId "14210703"]
[WhiteElo "2618"]
[BlackElo "2422"]
[Result "0-1"]
[Round "05"]
[TimeControl "180+2"]
[Date "2023.02.14"]
[WhiteClock "0:00:02"]
[BlackClock "0:00:10"]

1. e4 {[%clk 0:03:00]}  e5 {[%clk 0:02:57]} 2. Nf3 {[%clk 0:02:57]}  Nf6 {[%clk 0:02:58]} 3. Nc3 {[%clk 0:02:57]}  Nc6 {[%clk 0:02:58]} 4. g3 {[%clk 0:02:58]}  d5 {[%clk 0:02:57]} 5. exd5 {[%clk 0:02:58]}  Nxd5 {[%clk 0:02:58]} 6. Bg2 {[%clk 0:02:59]}  Nxc3 {[%clk 0:02:59]} 7. bxc3 {[%clk 0:03:00]}  Bc5 {[%clk 0:02:59]} 8. O-O {[%clk 0:03:00]}  O-O {[%clk 0:02:59]} 9. Re1 {[%clk 0:02:58]}  Re8 {[%clk 0:02:59]} 10. d3 {[%clk 0:02:55]}  Rb8 {[%clk 0:02:42]} 11. Be3 {[%clk 0:02:41]}  Bf8 {[%clk 0:02:33]} 12. d4 {[%clk 0:02:14]}  exd4 {[%clk 0:02:28]} 13. cxd4 {[%clk 0:02:14]}  Be6 {[%clk 0:02:20]} 14. c3 {[%clk 0:02:04]}  Bd5 {[%clk 0:02:18]} 15. Qc2 {[%clk 0:02:00]}  h6 {[%clk 0:02:01]} 16. Bf4 {[%clk 0:01:47]}  Qd7 {[%clk 0:01:57]} 17. Nd2 {[%clk 0:01:25]}  Bxg2 {[%clk 0:01:42]} 18. Kxg2 {[%clk 0:01:26]}  b5 {[%clk 0:01:41]} 19. Nf3 {[%clk 0:01:03]}  Qd5 {[%clk 0:01:25]} 20. Qb3 {[%clk 0:00:53]}  Ne7 {[%clk 0:00:39]} 21. Bxc7 {[%clk 0:00:26]}  Rbc8 {[%clk 0:00:39]} 22. Rxe7 {[%clk 0:00:14]}  Qxb3 {[%clk 0:00:33]} 23. Rxe8 {[%clk 0:00:15]}  Qxc3 {[%clk 0:00:26]} 24. Rxc8 {[%clk 0:00:15]}  Qxa1 {[%clk 0:00:27]} 25. Bd6 {[%clk 0:00:15]}  Qxa2 {[%clk 0:00:28]} 26. Bxf8 {[%clk 0:00:13]}  Kh7 {[%clk 0:00:24]} 27. Bc5 {[%clk 0:00:12]}  a5 {[%clk 0:00:24]} 28. Rb8 {[%clk 0:00:10]}  b4 {[%clk 0:00:24]} 29. Bxb4 {[%clk 0:00:04]}  axb4 {[%clk 0:00:22]} 30. Rxb4 {[%clk 0:00:05]}  Qd5 {[%clk 0:00:21]} 31. h3 {[%clk 0:00:04]}  g5 {[%clk 0:00:18]} 32. g4 {[%clk 0:00:03]}  Qe4 {[%clk 0:00:19]} 33. Rb5 {[%clk 0:00:02]}  f6 {[%clk 0:00:17]} 34. Rf5 {[%clk 0:00:03]}  Kg6 {[%clk 0:00:18]} 35. Kg3 {[%clk 0:00:03]}  h5 {[%clk 0:00:16]} 36. d5 {[%clk 0:00:03]}  Qd3 {[%clk 0:00:12]} 37. Kg2 {[%clk 0:00:03]}  Qe4 {[%clk 0:00:11]} 38. Kg3 {[%clk 0:00:03]}  Kg7 {[%clk 0:00:10]} 39. Nh2 {[%clk 0:00:02]}  h4# {[%clk 0:00:10]} 0-1


[Site "https://www.chess.com"]

[Event "Titled Tuesday Blitz February 14 Late 2023"]
[White "Hakobyan, Aram"]
[Black "Avinash, Ramesh"]
[WhiteFideId "13306677"]
[BlackFideId "45018340"]
[WhiteElo "2608"]
[BlackElo "2319"]
[Result "1-0"]
[Round "05"]
[TimeControl "180+2"]
[Date "2023.02.14"]
[WhiteClock "0:00:05"]
[BlackClock "0:00:15"]

1. e4 {[%clk 0:03:00]}  e6 {[%clk 0:02:57]} 2. d4 {[%clk 0:03:01]}  d5 {[%clk 0:02:57]} 3. Nc3 {[%clk 0:03:01]}  Nf6 {[%clk 0:02:57]} 4. e5 {[%clk 0:03:01]}  Nfd7 {[%clk 0:02:56]} 5. f4 {[%clk 0:02:57]}  c5 {[%clk 0:02:56]} 6. Nf3 {[%clk 0:02:58]}  Nc6 {[%clk 0:02:56]} 7. Be3 {[%clk 0:02:59]}  a6 {[%clk 0:02:52]} 8. Ne2 {[%clk 0:02:53]}  b5 {[%clk 0:02:48]} 9. Qd2 {[%clk 0:02:42]}  a5 {[%clk 0:02:42]} 10. Ng3 {[%clk 0:02:40]}  b4 {[%clk 0:02:40]} 11. Bb5 {[%clk 0:02:34]}  Qb6 {[%clk 0:02:36]} 12. Bxc6 {[%clk 0:02:34]}  Qxc6 {[%clk 0:02:36]} 13. O-O {[%clk 0:02:35]}  Ba6 {[%clk 0:02:33]} 14. Rf2 {[%clk 0:02:35]}  g6 {[%clk 0:02:30]} 15. Rd1 {[%clk 0:02:25]}  h5 {[%clk 0:02:30]} 16. dxc5 {[%clk 0:02:24]}  Bxc5 {[%clk 0:02:28]} 17. Bxc5 {[%clk 0:02:20]}  Nxc5 {[%clk 0:02:29]} 18. Nd4 {[%clk 0:02:18]}  Qb6 {[%clk 0:02:29]} 19. h4 {[%clk 0:02:04]}  Nd3 {[%clk 0:02:29]} 20. cxd3 {[%clk 0:01:47]}  Qxd4 {[%clk 0:02:29]} 21. Nf1 {[%clk 0:01:23]}  Kd7 {[%clk 0:02:24]} 22. Qe3 {[%clk 0:01:20]}  Qxe3 {[%clk 0:02:21]} 23. Nxe3 {[%clk 0:01:21]}  Rhc8 {[%clk 0:02:21]} 24. d4 {[%clk 0:01:21]}  a4 {[%clk 0:02:19]} 25. Rc2 {[%clk 0:01:16]}  b3 {[%clk 0:02:14]} 26. Rxc8 {[%clk 0:01:12]}  Rxc8 {[%clk 0:02:13]} 27. a3 {[%clk 0:00:54]}  Be2 {[%clk 0:02:09]} 28. Re1 {[%clk 0:00:49]}  Bd3 {[%clk 0:02:08]} 29. Kf2 {[%clk 0:00:47]}  Be4 {[%clk 0:02:07]} 30. g3 {[%clk 0:00:41]}  Rc7 {[%clk 0:01:53]} 31. Ke2 {[%clk 0:00:39]}  Rc8 {[%clk 0:01:49]} 32. Kd2 {[%clk 0:00:39]}  Rc6 {[%clk 0:01:22]} 33. Rc1 {[%clk 0:00:38]}  Rxc1 {[%clk 0:01:22]} 34. Kxc1 {[%clk 0:00:39]}  Kc6 {[%clk 0:01:23]} 35. Kd2 {[%clk 0:00:38]}  Kb5 {[%clk 0:01:21]} 36. g4 {[%clk 0:00:34]}  Ka5 {[%clk 0:01:18]} 37. Kc3 {[%clk 0:00:28]}  Bf3 {[%clk 0:01:15]} 38. gxh5 {[%clk 0:00:25]}  gxh5 {[%clk 0:01:15]} 39. f5 {[%clk 0:00:24]}  Be2 {[%clk 0:01:13]} 40. fxe6 {[%clk 0:00:21]}  fxe6 {[%clk 0:01:13]} 41. Ng2 {[%clk 0:00:22]}  Kb5 {[%clk 0:01:08]} 42. Nf4 {[%clk 0:00:23]}  Bg4 {[%clk 0:01:08]} 43. Nd3 {[%clk 0:00:22]}  Bd1 {[%clk 0:01:05]} 44. Nc5 {[%clk 0:00:22]}  Bg4 {[%clk 0:01:05]} 45. Kd3 {[%clk 0:00:22]}  Bf5+ {[%clk 0:01:02]} 46. Kc3 {[%clk 0:00:21]}  Bg4 {[%clk 0:01:00]} 47. Nd7 {[%clk 0:00:21]}  Ka5 {[%clk 0:00:52]} 48. Nf6 {[%clk 0:00:20]}  Bf3 {[%clk 0:00:53]} 49. Nh7 {[%clk 0:00:17]}  Kb5 {[%clk 0:00:51]} 50. Ng5 {[%clk 0:00:17]}  Bg4 {[%clk 0:00:52]} 51. Nf7 {[%clk 0:00:18]}  Ka5 {[%clk 0:00:48]} 52. Nd6 {[%clk 0:00:19]}  Bf3 {[%clk 0:00:45]} 53. Kd2 {[%clk 0:00:20]}  Ka6 {[%clk 0:00:42]} 54. Ke3 {[%clk 0:00:20]}  Bd1 {[%clk 0:00:41]} 55. Kf4 {[%clk 0:00:21]}  Ka5 {[%clk 0:00:35]} 56. Kg5 {[%clk 0:00:22]}  Kb6 {[%clk 0:00:34]} 57. Kf6 {[%clk 0:00:23]}  Bg4 {[%clk 0:00:31]} 58. Ke7 {[%clk 0:00:24]}  Bh3 {[%clk 0:00:30]} 59. Kd7 {[%clk 0:00:23]}  Bg4 {[%clk 0:00:28]} 60. Kc8 {[%clk 0:00:19]}  Bd1 {[%clk 0:00:26]} 61. Kd8 {[%clk 0:00:18]}  Bg4 {[%clk 0:00:27]} 62. Ke7 {[%clk 0:00:12]}  Kc6 {[%clk 0:00:21]} 63. Kf6 {[%clk 0:00:11]}  Kb6 {[%clk 0:00:18]} 64. Kg5 {[%clk 0:00:10]}  Kc6 {[%clk 0:00:18]} 65. Kf4 {[%clk 0:00:10]}  Kb6 {[%clk 0:00:18]} 66. Ke3 {[%clk 0:00:10]}  Kc6 {[%clk 0:00:19]} 67. Kd3 {[%clk 0:00:10]}  Kb6 {[%clk 0:00:19]} 68. Kc3 {[%clk 0:00:10]}  Ka5 {[%clk 0:00:20]} 69. Nb7+ {[%clk 0:00:11]}  Kb5 {[%clk 0:00:20]} 70. Nc5 {[%clk 0:00:12]}  Bf5 {[%clk 0:00:20]} 71. Nb7 {[%clk 0:00:10]}  Bg4 {[%clk 0:00:19]} 72. Nd6+ {[%clk 0:00:08]}  Ka5 {[%clk 0:00:19]} 73. Nf7 {[%clk 0:00:08]}  Bf5 {[%clk 0:00:19]} 74. Ng5 {[%clk 0:00:09]}  Bg4 {[%clk 0:00:19]} 75. Nh7 {[%clk 0:00:10]}  Bf5 {[%clk 0:00:19]} 76. Nf6 {[%clk 0:00:11]}  Bg4 {[%clk 0:00:20]} 77. Nxg4 {[%clk 0:00:08]}  hxg4 {[%clk 0:00:21]} 78. Kd3 {[%clk 0:00:09]}  Kb5 {[%clk 0:00:19]} 79. h5 {[%clk 0:00:09]}  g3 {[%clk 0:00:20]} 80. Ke3 {[%clk 0:00:09]}  g2 {[%clk 0:00:20]} 81. Kf2 {[%clk 0:00:09]}  Kc4 {[%clk 0:00:21]} 82. h6 {[%clk 0:00:09]}  Kd3 {[%clk 0:00:22]} 83. h7 {[%clk 0:00:09]}  Kc2 {[%clk 0:00:23]} 84. h8=Q {[%clk 0:00:10]}  Kxb2 {[%clk 0:00:23]} 85. Qf8 {[%clk 0:00:08]}  Ka2 {[%clk 0:00:23]} 86. Kxg2 {[%clk 0:00:06]}  b2 {[%clk 0:00:23]} 87. Qf2 {[%clk 0:00:04]}  Kxa3 {[%clk 0:00:22]} 88. Qc2 {[%clk 0:00:04]}  Ka2 {[%clk 0:00:16]} 89. Qxa4+ {[%clk 0:00:04]}  Kb1 {[%clk 0:00:17]} 90. Qa6 {[%clk 0:00:04]}  Kc2 {[%clk 0:00:16]} 91. Qxe6 {[%clk 0:00:04]}  b1=Q {[%clk 0:00:14]} 92. Qf5+ {[%clk 0:00:04]}  Kb2 {[%clk 0:00:14]} 93. Qxb1+ {[%clk 0:00:05]}  Kxb1 {[%clk 0:00:15]} 94. e6 {[%clk 0:00:05]} 1-0


[Site "https://www.chess.com"]

[Event "Titled Tuesday Blitz February 14 Late 2023"]
[White "Gutenev, Alexander"]
[Black "Terry, Renato"]
[WhiteFideId "4195540"]
[BlackFideId "3803457"]
[WhiteElo "2455"]
[BlackElo "2520"]
[Result "0-1"]
[Round "05"]
[TimeControl "180+2"]
[Date "2023.02.14"]
[WhiteClock "0:00:23"]
[BlackClock "0:00:51"]

1. e4 {[%clk 0:02:55]}  e6 {[%clk 0:03:00]} 2. d4 {[%clk 0:02:53]}  d5 {[%clk 0:03:00]} 3. Nc3 {[%clk 0:02:53]}  Nf6 {[%clk 0:03:01]} 4. e5 {[%clk 0:02:54]}  Nfd7 {[%clk 0:03:01]} 5. f4 {[%clk 0:02:54]}  c5 {[%clk 0:03:02]} 6. Nf3 {[%clk 0:02:55]}  Nc6 {[%clk 0:03:03]} 7. Be3 {[%clk 0:02:55]}  Be7 {[%clk 0:03:04]} 8. Qd2 {[%clk 0:02:55]}  O-O {[%clk 0:03:05]} 9. Be2 {[%clk 0:02:55]}  b6 {[%clk 0:03:05]} 10. O-O {[%clk 0:02:55]}  f5 {[%clk 0:03:05]} 11. Nd1 {[%clk 0:02:53]}  cxd4 {[%clk 0:03:05]} 12. Nxd4 {[%clk 0:02:53]}  Nxd4 {[%clk 0:03:05]} 13. Bxd4 {[%clk 0:02:53]}  Nc5 {[%clk 0:03:06]} 14. Nf2 {[%clk 0:02:47]}  Bb7 {[%clk 0:03:06]} 15. c3 {[%clk 0:02:43]}  Kh8 {[%clk 0:03:06]} 16. Rad1 {[%clk 0:02:40]}  g5 {[%clk 0:03:01]} 17. fxg5 {[%clk 0:02:23]}  Bxg5 {[%clk 0:03:01]} 18. Qe1 {[%clk 0:02:23]}  Rg8 {[%clk 0:02:49]} 19. Kh1 {[%clk 0:02:22]}  Bh6 {[%clk 0:02:22]} 20. c4 {[%clk 0:02:15]}  Qh4 {[%clk 0:02:17]} 21. Bf3 {[%clk 0:02:10]}  dxc4 {[%clk 0:02:09]} 22. Bxb7 {[%clk 0:01:57]}  Nxb7 {[%clk 0:02:09]} 23. Qe2 {[%clk 0:01:54]}  Rg7 {[%clk 0:01:35]} 24. Qxc4 {[%clk 0:01:40]}  Nc5 {[%clk 0:01:24]} 25. b4 {[%clk 0:01:25]}  Rag8 {[%clk 0:01:17]} 26. Rg1 {[%clk 0:00:47]}  Be3 {[%clk 0:01:02]} 27. g3 {[%clk 0:00:25]}  Bxf2 {[%clk 0:00:51]} 28. gxh4 {[%clk 0:00:24]}  Rxg1+ {[%clk 0:00:51]} 29. Rxg1 {[%clk 0:00:23]}  Rxg1# {[%clk 0:00:51]} 0-1


[Site "https://www.chess.com"]

[Event "Titled Tuesday Blitz February 14 Late 2023"]
[White "Goltsev, Dmitry"]
[Black "Melkumyan, Hrant"]
[WhiteFideId "24176710"]
[BlackFideId "13302485"]
[WhiteElo "2269"]
[BlackElo "2645"]
[Result "0-1"]
[Round "05"]
[TimeControl "180+2"]
[Date "2023.02.14"]
[WhiteClock "0:00:01"]
[BlackClock "0:00:07"]

1. e4 {[%clk 0:02:57]}  c5 {[%clk 0:02:37]} 2. Nf3 {[%clk 0:02:56]}  Nc6 {[%clk 0:02:38]} 3. d4 {[%clk 0:02:56]}  cxd4 {[%clk 0:02:38]} 4. Nxd4 {[%clk 0:02:57]}  e5 {[%clk 0:02:37]} 5. Nf5 {[%clk 0:02:56]}  d5 {[%clk 0:02:36]} 6. Qxd5 {[%clk 0:02:56]}  Qxd5 {[%clk 0:02:36]} 7. exd5 {[%clk 0:02:57]}  Bxf5 {[%clk 0:02:37]} 8. dxc6 {[%clk 0:02:58]}  bxc6 {[%clk 0:02:38]} 9. Bd3 {[%clk 0:02:58]}  Bxd3 {[%clk 0:02:37]} 10. cxd3 {[%clk 0:02:59]}  Ne7 {[%clk 0:02:35]} 11. Nc3 {[%clk 0:02:58]}  Nf5 {[%clk 0:02:33]} 12. Be3 {[%clk 0:02:57]}  Kd7 {[%clk 0:02:25]} 13. Ke2 {[%clk 0:02:55]}  Be7 {[%clk 0:02:17]} 14. Rac1 {[%clk 0:02:55]}  Rhb8 {[%clk 0:02:17]} 15. b3 {[%clk 0:02:53]}  Nxe3 {[%clk 0:02:12]} 16. fxe3 {[%clk 0:02:49]}  f5 {[%clk 0:02:13]} 17. Na4 {[%clk 0:02:47]}  Rb5 {[%clk 0:02:10]} 18. Rc4 {[%clk 0:02:46]}  Rc8 {[%clk 0:02:08]} 19. Rhc1 {[%clk 0:02:42]}  g6 {[%clk 0:02:07]} 20. Nc5+ {[%clk 0:02:35]}  Bxc5 {[%clk 0:02:06]} 21. Rxc5 {[%clk 0:02:36]}  a6 {[%clk 0:02:03]} 22. Rxb5 {[%clk 0:02:32]}  axb5 {[%clk 0:02:03]} 23. a4 {[%clk 0:02:31]}  bxa4 {[%clk 0:01:46]} 24. bxa4 {[%clk 0:02:32]}  Rb8 {[%clk 0:01:47]} 25. Rc2 {[%clk 0:02:32]}  Kc7 {[%clk 0:01:42]} 26. a5 {[%clk 0:02:31]}  Rb5 {[%clk 0:01:38]} 27. Ra2 {[%clk 0:02:30]}  Kb7 {[%clk 0:01:39]} 28. d4 {[%clk 0:02:22]}  e4 {[%clk 0:01:29]} 29. h4 {[%clk 0:02:22]}  Rb1 {[%clk 0:01:21]} 30. Kf2 {[%clk 0:02:12]}  Rh1 {[%clk 0:01:14]} 31. Kg3 {[%clk 0:02:09]}  Re1 {[%clk 0:01:14]} 32. Kf2 {[%clk 0:02:07]}  Rc1 {[%clk 0:01:13]} 33. Kg3 {[%clk 0:02:06]}  h6 {[%clk 0:00:53]} 34. Kf4 {[%clk 0:02:02]}  Rh1 {[%clk 0:00:53]} 35. Kg3 {[%clk 0:01:56]}  g5 {[%clk 0:00:52]} 36. hxg5 {[%clk 0:01:57]}  hxg5 {[%clk 0:00:52]} 37. Rb2+ {[%clk 0:01:54]}  Kc7 {[%clk 0:00:42]} 38. a6 {[%clk 0:01:53]}  Ra1 {[%clk 0:00:41]} 39. Rb7+ {[%clk 0:01:53]}  Kd6 {[%clk 0:00:42]} 40. a7 {[%clk 0:01:48]}  Ra3 {[%clk 0:00:42]} 41. Kf2 {[%clk 0:01:35]}  f4 {[%clk 0:00:42]} 42. exf4 {[%clk 0:01:31]}  gxf4 {[%clk 0:00:43]} 43. Rf7 {[%clk 0:01:31]}  Ra2+ {[%clk 0:00:43]} 44. Kf1 {[%clk 0:01:31]}  Kd5 {[%clk 0:00:44]} 45. Rxf4 {[%clk 0:01:00]}  Rxa7 {[%clk 0:00:43]} 46. Rf6 {[%clk 0:01:00]}  Rc7 {[%clk 0:00:37]} 47. g4 {[%clk 0:00:58]}  Kxd4 {[%clk 0:00:37]} 48. g5 {[%clk 0:00:58]}  Ke3 {[%clk 0:00:28]} 49. g6 {[%clk 0:00:58]}  c5 {[%clk 0:00:29]} 50. Rf7 {[%clk 0:00:56]}  Rc6 {[%clk 0:00:29]} 51. g7 {[%clk 0:00:53]}  Rg6 {[%clk 0:00:29]} 52. Rc7 {[%clk 0:00:52]}  c4 {[%clk 0:00:25]} 53. Rxc4 {[%clk 0:00:47]}  Rxg7 {[%clk 0:00:26]} 54. Ra4 {[%clk 0:00:47]}  Kf3 {[%clk 0:00:20]} 55. Ra8 {[%clk 0:00:41]}  Rb7 {[%clk 0:00:19]} 56. Rf8+ {[%clk 0:00:38]}  Ke3 {[%clk 0:00:19]} 57. Ra8 {[%clk 0:00:33]}  Rb1+ {[%clk 0:00:16]} 58. Kg2 {[%clk 0:00:34]}  Rb3 {[%clk 0:00:13]} 59. Kf1 {[%clk 0:00:33]}  Rc3 {[%clk 0:00:13]} 60. Ra1 {[%clk 0:00:31]}  Kf3 {[%clk 0:00:12]} 61. Ke1 {[%clk 0:00:20]}  e3 {[%clk 0:00:13]} 62. Kd1 {[%clk 0:00:20]}  Rb3 {[%clk 0:00:10]} 63. Ke1 {[%clk 0:00:16]}  Rb2 {[%clk 0:00:10]} 64. Kf1 {[%clk 0:00:14]}  Rf2+ {[%clk 0:00:08]} 65. Kg1 {[%clk 0:00:12]}  Rg2+ {[%clk 0:00:08]} 66. Kh1 {[%clk 0:00:10]}  Rg5 {[%clk 0:00:04]} 67. Rf1+ {[%clk 0:00:07]}  Ke2 {[%clk 0:00:05]} 68. Rf8 {[%clk 0:00:07]}  Ke1 {[%clk 0:00:06]} 69. Ra8 {[%clk 0:00:06]}  e2 {[%clk 0:00:06]} 70. Rd8 {[%clk 0:00:04]}  Kf2 {[%clk 0:00:06]} 71. Rf8+ {[%clk 0:00:04]}  Ke3 {[%clk 0:00:07]} 72. Re8+ {[%clk 0:00:04]}  Kf2 {[%clk 0:00:05]} 73. Rf8+ {[%clk 0:00:04]}  Ke1 {[%clk 0:00:06]} 74. Rd8 {[%clk 0:00:03]}  Rg4 {[%clk 0:00:06]} 75. Kh2 {[%clk 0:00:01]}  Kf2 {[%clk 0:00:06]} 76. Rf8+ {[%clk 0:00:01]}  Ke3 {[%clk 0:00:07]} 77. Re8+ {[%clk 0:00:02]}  Re4 {[%clk 0:00:07]} 78. Rf8 {[%clk 0:00:01]}  e1=Q {[%clk 0:00:07]} 79. Rf1 {[%clk 0:00:01]}  Rh4+ {[%clk 0:00:07]} 0-1


[Site "https://www.chess.com"]